bitfinex/quotes_ETHUSD_20250623
["timestamp","ask_amount","ask_price","bid_price","bid_amount"]
[1750674789109,1.86,2251.2,2250.9,2.096861]
[1750674789425,1.86,2251.2,2250.9,0.7614]
[1750674789825,1.86,2251.2,2251.0,1.335461]
[1750674791629,0.67132954,2251.1,2251.0,1.335461]
[1750674796339,0.67132954,2251.1,2250.1,5.22487198]
[1750674796532,7.8348,2251.0,2250.5,1.33583]
[1750674798720,0.05554179,2250.9,2250.5,1.33583]
[1750674800223,1.859,2250.8,2250.5,1.33583]
[1750674801531,1.91453942,2250.8,2250.5,1.33583]
[1750674801833,1.859,2250.8,2250.5,1.33583]
[1750674802424,10.681,2251.4,2250.5,1.33583]
[1750674802624,9.74933807,2251.3,2250.6,15.25766793]
[1750674802827,9.6938,2251.3,2250.6,15.25766793]
[1750674803158,0.05552981,2251.2,2250.6,15.25766793]
[1750674803505,0.05552981,2251.2,2250.6,10.8145]
[1750674804805,0.05552981,2251.2,2250.6,15.25775219]
[1750674805007,7.219,2251.2,2250.8,0.7575]
[1750674805207,7.27453419,2251.2,2250.8,0.7575]
[1750674808248,7.27453419,2251.2,2250.9,1.335473]
[1750674809546,7.27453419,2251.2,2250.8,0.7575]
[1750674809746,7.27453419,2251.2,2250.8,1.33558]
[1750674814362,7.219,2251.2,2250.8,1.33558]
[1750674814863,10.681,2251.4,2250.8,1.33558]
[1750674815162,9.077,2251.1,2250.9,0.784]
[1750674815661,10.681,2251.4,2251.1,5.23733784]
[1750674815662,12.54,2251.4,2251.1,5.23733784]
[1750674815831,12.54,2251.4,2251.2,0.7951]
[1750674816033,1.859,2251.4,2251.2,5.23715521]
[1750674817675,1.859,2251.4,2251.2,0.7951]
[1750674817966,1.859,2251.4,2251.3,12.30080655]
[1750674818133,9.077,2251.8,2251.4,0.8049]
[1750674818332,9.077,2251.8,2251.4,10.84931223]
[1750674818547,1.859,2251.8,2251.4,15.24654465]
[1750674818932,1.859,2251.8,2251.3,11.49588039]
[1750674818933,1.858,2252.0,2251.7,22.29484017]
[1750674819128,1.858,2252.0,2251.8,4.44086935]
[1750674819334,1.858,2252.0,2251.9,10.0]
[1750674819560,1.858,2252.0,2251.9,17.85382853]
[1750674820256,1.858,2252.0,2251.9,0.7998]
[1750674822050,1.858,2252.0,2251.9,5.24049452]
[1750674822368,10.677,2252.3,2252.0,4.44041217]
[1750674822557,10.677,2252.3,2251.9,0.7998]
[1750674822757,11.2928,2252.3,2251.9,0.7998]
[1750674822939,10.677,2252.3,2251.9,0.7998]
[1750674823983,10.677,2252.3,2251.9,0.84420199]
[1750674824471,10.677,2252.3,2251.9,0.7998]
[1750674825158,10.677,2252.3,2251.7,7.05402853]
[1750674825159,10.677,2252.3,2251.7,0.771]
[1750674825767,0.67130991,2252.2,2251.7,0.771]
[1750674825954,0.67130991,2252.2,2251.5,2.164922]
[1750674827877,0.67130991,2252.2,2251.6,10.0]
[1750674828041,0.67130991,2252.2,2251.5,2.164922]
[1750674829584,7.10953844,2252.2,2251.5,1.335122]
[1750674829739,0.6158,2252.0,2251.5,1.335122]
[1750674829942,0.6158,2251.8,2251.5,1.335122]
[1750674830175,0.05552497,2251.7,2251.0,0.7561]
[1750674830354,0.05552497,2251.7,2251.1,1.335366]
[1750674830685,0.6158,2251.6,2251.1,1.335366]
[1750674830845,7.27052719,2251.5,2251.1,1.335366]
[1750674831045,1.857,2251.4,2251.1,1.335366]
[1750674832183,0.05552718,2251.3,2251.1,1.335366]
[1750674832380,1.857,2251.4,2251.1,1.335366]
[1750674832587,1.91252718,2251.4,2251.1,1.335366]
[1750674835153,7.215,2251.3,2251.1,1.335366]
[1750674836275,0.6158,2251.6,2251.1,1.335366]
[1750674836480,1.857,2251.3,2251.1,1.335366]
[1750674837889,0.6158,2251.8,2251.2,0.7702]
[1750674838058,7.215,2251.5,2251.2,0.7702]
[1750674839975,7.215,2251.5,2251.2,2.105566]
[1750674840893,0.05552544,2251.4,2251.2,1.335366]
[1750674841761,0.05552544,2251.4,2250.8,0.8101]
[1750674841961,0.05552544,2251.4,2251.0,1.33549]
[1750674846394,7.215,2251.5,2251.2,0.8167]
[1750674846598,7.215,2251.5,2251.0,2.15219]
[1750674846781,7.215,2251.5,2251.0,12.15219]
[1750674847575,0.05552664,2251.4,2251.0,2.15219]
[1750674848181,0.05552664,2251.4,2251.0,12.15219]
[1750674849921,0.05552664,2251.4,2251.0,10.8167]
[1750674850212,0.05552664,2251.4,2251.1,1.335395]
[1750674851395,1.857,2251.3,2251.1,1.335395]
[1750674854008,0.6158,2251.9,2251.2,10.753]
[1750674854178,0.05551694,2251.8,2251.3,7.05402853]
[1750674854788,0.05551694,2251.8,2251.4,1.335164]
[1750674854993,1.857,2251.7,2251.6,10.0]
[1750674855175,2.4718,2251.8,2251.6,10.0]
[1750674856091,2.4718,2251.8,2251.4,1.335164]
[1750674856293,0.05552108,2251.7,2251.4,1.335164]
[1750674858317,1.856,2251.8,2251.4,1.335164]
[1750674858614,1.856,2251.8,2251.4,2.085664]
[1750674861106,1.91151683,2251.8,2251.4,2.085664]
[1750674862009,1.856,2251.8,2251.4,1.335164]
[1750674864600,1.91151679,2251.8,2251.4,1.335164]
[1750674865414,1.91151679,2251.8,2251.3,10.0]
[1750674865587,1.856,2251.8,2251.5,1.335164]
[1750674866312,1.856,2251.8,2251.4,7.05402853]
[1750674866313,1.856,2251.8,2251.4,11.49569967]
[1750674867125,1.856,2251.8,2251.6,1.335164]
[1750674867924,1.856,2251.8,2251.6,2.165264]
[1750674868425,1.856,2251.8,2251.7,7.05402853]
[1750674868722,1.856,2251.8,2251.7,11.49511748]
[1750674869025,1.856,2251.8,2251.7,7.05402853]
[1750674869333,1.91150991,2252.2,2251.7,7.05402853]
[1750674870009,0.6158,2252.1,2251.6,1.335164]
[1750674870213,0.05551186,2252.0,2251.6,1.335164]
[1750674871121,0.6158,2251.9,2251.6,1.335164]
[1750674871502,0.05551756,2251.8,2251.6,1.335164]
[1750674871692,1.856,2251.7,2251.6,1.335164]
[1750674871891,2.72453176,2251.7,2251.6,1.335164]
[1750674872293,2.78005604,2251.7,2251.6,1.335164]
[1750674873302,2.72453176,2251.7,2251.6,1.335164]
[1750674873917,2.78005573,2251.7,2251.6,1.335164]
[1750674874096,0.6158,2251.6,2250.9,10.4421398]
[1750674874290,0.05552684,2251.5,2250.9,10.4421398]
[1750674874711,0.05552684,2251.5,2251.0,1.335408]
[1750674877526,0.05552675,2251.5,2251.0,1.335408]
[1750674880234,0.6158,2251.6,2251.1,10.0]
[1750674880824,0.05552672,2251.5,2251.1,11.335407]
[1750674881025,0.05552672,2251.5,2251.1,1.335407]
[1750674882029,0.6158,2251.6,2251.1,1.335407]
[1750674883204,0.6158,2251.6,2251.1,12.83159663]
[1750674883501,1.856,2251.6,2251.5,7.05402853]
[1750674883700,1.856,2251.6,2251.5,12.30601198]
[1750674883932,1.856,2251.6,2251.5,22.30601198]
[1750674884136,1.856,2251.6,2251.5,23.64112798]
[1750674886308,1.856,2251.6,2251.5,19.19964453]
[1750674886709,1.856,2251.6,2251.5,23.64112798]
[1750674889424,1.856,2252.0,2251.5,19.19964453]
[1750674889614,2.10873132,2252.0,2251.5,19.19964453]
[1750674889814,0.05551157,2251.9,2251.5,19.19964453]
[1750674890058,2.16424295,2252.0,2251.5,19.19964453]
[1750674890723,0.6158,2251.9,2251.5,11.335116]
[1750674892941,0.67131155,2251.9,2251.5,11.335116]
[1750674893139,0.27800429,2251.8,2251.5,1.335116]
[1750674893347,0.6158,2251.7,2251.5,1.335116]
[1750674893558,7.8298,2251.7,2251.5,1.335116]
[1750674894142,0.05552039,2251.6,2251.5,1.335116]
[1750674898859,7.8298,2251.7,2251.5,1.335116]
[1750674900143,0.05552258,2251.6,2251.5,1.335116]
[1750674903175,0.67132258,2251.6,2251.5,1.335116]
[1750674904519,0.6158,2251.6,2251.5,1.335116]
[1750674904937,0.67132319,2251.6,2251.5,1.335116]
[1750674905256,0.6158,2251.6,2251.5,1.335116]
[1750674907867,9.071,2251.6,2251.5,1.335116]
[1750674908248,10.6158,2252.2,2251.5,1.335116]
[1750674908430,9.12651691,2252.1,2251.5,2.094416]
[1750674908631,9.071,2252.1,2251.5,2.094416]
[1750674908931,0.05551472,2252.0,2251.5,2.094416]
[1750674909268,0.05551472,2252.0,2251.5,9.14844453]
[1750674909566,1.856,2251.9,2251.5,9.14844453]
[1750674912499,1.856,2251.9,2251.5,13.58987215]
[1750674912773,1.856,2251.9,2251.5,16.11786083]
[1750674912975,1.856,2251.9,2251.6,5.25028163]
[1750674913178,1.856,2251.9,2251.7,7.05402853]
[1750674913747,1.856,2251.9,2251.6,0.809]
[1750674914477,1.856,2251.9,2251.7,7.09843496]
[1750674914645,1.856,2251.9,2251.7,7.05402853]
[1750674915187,1.856,2251.9,2251.8,0.7535]
[1750674916246,10.677,2252.3,2251.8,6.41925342]
[1750674916564,12.533,2252.3,2251.9,7.09843078]
[1750674917381,12.533,2252.3,2252.0,1.334837]
[1750674918078,12.533,2252.3,2252.1,0.8175]
[1750674920195,1.856,2252.3,2252.1,0.8175]
[1750674920398,1.856,2252.3,2252.1,12.35606508]
[1750674920574,1.856,2252.3,2252.1,12.31166681]
[1750674920766,1.856,2252.3,2252.2,15.29180078]
[1750674920965,1.856,2252.3,2252.2,15.24740301]
[1750674921366,9.069,2253.1,2252.5,10.0]
[1750674921597,0.05548613,2253.0,2252.5,17.05402853]
[1750674922096,9.081,2253.1,2252.8,0.8307]
[1750674925483,9.081,2253.1,2252.9,1.334285]
[1750674930622,0.6158,2253.0,2252.9,1.334285]
[1750674930800,0.6158,2252.9,2252.1,0.43771866]
[1750674930974,7.27849828,2252.8,2252.1,2.159624]
[1750674931174,0.6158,2252.7,2252.1,1.78432247]
[1750674931369,1.91049827,2252.6,2252.1,1.78432247]
[1750674931586,7.237,2252.5,2252.1,1.78432247]
[1750674931991,0.05549827,2252.4,2252.1,1.78432247]
[1750674932193,7.29249855,2252.5,2252.1,1.78432247]
[1750674932809,7.29249855,2252.5,2252.1,1.334724]
[1750674933015,0.67129888,2252.4,2252.1,1.334724]
[1750674933314,0.6158,2252.4,2252.1,1.334724]
[1750674933470,0.67130488,2252.4,2252.1,1.334724]
[1750674935097,0.6158,2252.6,2252.1,1.334724]
[1750674935283,9.14850069,2252.5,2252.1,1.334724]
[1750674935476,9.093,2252.5,2252.1,1.334724]
[1750674936573,0.05549825,2252.4,2252.1,1.334724]
[1750674936797,0.6158,2252.3,2252.1,1.334724]
[1750674939715,0.05550607,2252.2,2252.1,1.334724]
[1750674939879,0.6158,2252.3,2252.1,1.334724]
[1750674941078,0.05550579,2252.2,2252.1,1.334724]
[1750674941284,0.67130611,2252.3,2252.1,1.334724]
[1750674942920,0.6158,2252.3,2252.1,1.334724]
[1750674949930,0.05550583,2252.2,2252.1,1.334724]
[1750674950328,0.6158,2252.3,2252.1,1.334724]
[1750674951712,9.7088,2252.5,2252.1,1.334724]
[1750674951917,0.05550568,2252.4,2252.1,1.334724]
[1750674952506,9.7088,2252.5,2252.1,1.334724]
[1750674952730,0.05550558,2252.4,2252.1,1.334724]
[1750674954201,9.7088,2252.5,2252.1,1.334724]
[1750674954818,0.0555057,2252.4,2252.1,1.334724]
[1750674955340,9.7088,2252.5,2252.1,1.334724]
[1750674956010,0.05550567,2252.4,2252.1,1.334724]
[1750674958513,9.7088,2252.5,2252.1,1.334724]
[1750674958711,0.05550813,2252.4,2252.1,1.334724]
[1750674958931,0.05550813,2252.4,2251.8,10.0]
[1750674959341,0.05550813,2252.4,2251.9,1.334997]
[1750674959508,0.6158,2252.2,2251.4,0.8225]
[1750674959713,0.6158,2252.2,2251.7,1.335116]
[1750674959714,0.05551462,2252.1,2251.7,1.335116]
[1750674960042,1.867,2252.0,2251.7,1.335116]
[1750674960240,0.05551647,2251.9,2251.7,1.335116]
[1750674960748,1.867,2252.0,2251.7,1.335116]
[1750674963559,0.05551646,2251.9,2251.7,1.335116]
[1750674964132,0.05551646,2251.9,2251.4,0.8225]
[1750674964459,2.11528,2252.0,2251.6,1.33523]
[1750674965954,0.05551841,2251.9,2251.6,1.33523]
[1750674966456,2.11528,2252.0,2251.6,1.33523]
[1750674967470,0.05551836,2251.9,2251.6,1.33523]
[1750674967972,2.11528,2252.0,2251.6,1.33523]
[1750674969586,0.05551569,2251.9,2251.6,8.38925853]
[1750674970582,0.67131569,2251.9,2251.6,1.33523]
[1750674970880,0.6158,2251.9,2251.4,0.8225]
[1750674971185,0.86408,2251.9,2251.4,0.8225]
[1750674971484,0.86408,2251.9,2251.5,1.33527]
[1750674972585,0.6158,2251.9,2251.5,1.33527]
[1750674972986,0.05551785,2251.8,2251.5,1.33527]
[1750674973143,0.6158,2251.9,2251.5,1.33527]
[1750674974046,0.05551782,2251.8,2251.5,11.33527]
[1750674974780,0.05551782,2251.8,2251.5,10.0]
[1750674975098,0.05551782,2251.8,2251.6,1.335206]
[1750674975375,1.867,2252.0,2251.6,1.335206]
[1750674975546,0.05551183,2251.9,2251.6,1.335206]
[1750674977981,1.867,2252.0,2251.6,1.335206]
[1750674978278,0.05551572,2251.9,2251.6,1.335206]
[1750674978494,1.867,2252.0,2251.6,1.335206]
[1750674979183,0.05551174,2251.9,2251.6,1.335206]
[1750674981694,1.9225117,2252.0,2251.7,10.8039]
[1750674982593,1.867,2252.0,2251.7,10.8039]
[1750674983095,0.05551168,2251.9,2251.4,17.81522853]
[1750674983296,0.05551168,2251.9,2251.5,1.335158]
[1750674983677,0.6158,2251.8,2251.5,1.335158]
[1750674984357,0.05551168,2251.9,2251.5,1.335158]
[1750674986099,0.05551168,2251.9,2251.5,2.091658]
[1750674986302,0.33472597,2251.9,2251.5,1.335158]
[1750674986796,0.33472597,2251.9,2251.3,0.7565]
[1750674987180,0.33472597,2251.9,2251.4,10.0]
[1750674987379,1.857,2251.8,2251.4,10.0]
[1750674987566,0.05551949,2251.7,2251.4,10.0]
[1750674987968,1.857,2251.8,2251.6,0.7681]
[1750674991996,1.857,2251.8,2251.5,1.335129]
[1750674998250,1.857,2251.8,2251.5,1.335129]
[1750675000861,1.857,2252.0,2251.8,10.7629]
[1750675001019,1.857,2252.4,2252.2,0.7629]
[1750675001225,1.857,2252.7,2252.3,10.0]
[1750675001424,1.857,2252.8,2252.5,10.0]
[1750675001626,1.857,2252.8,2252.4,8.38862753]
[1750675001926,2.10428,2252.8,2252.4,8.38862753]
[1750675002342,2.15977225,2252.8,2252.4,8.38862753]
[1750675002745,2.10428,2252.8,2252.4,8.38862753]
[1750675008463,2.10428,2252.8,2252.4,1.334599]
[1750675012868,0.6158,2252.6,2252.4,1.334599]
[1750675013067,7.1095207,2252.7,2251.8,0.7794]
[1750675013068,0.67130297,2252.5,2251.8,0.7794]
[1750675013271,7.22,2252.4,2251.6,10.7794]
[1750675013481,0.6158,2252.2,2251.6,0.7794]
[1750675013719,0.6158,2252.2,2251.9,1.334914]
[1750675014094,0.6158,2252.2,2251.6,0.7794]
[1750675014394,0.6158,2252.2,2251.6,2.114392]
[1750675014576,0.6158,2252.2,2251.6,2.15879873]
[1750675015278,0.6158,2252.2,2251.7,10.0]
[1750675017346,0.6158,2252.2,2251.6,12.114392]
[1750675018829,0.6158,2252.2,2251.7,7.09843522]
[1750675019584,2.4728,2252.5,2251.9,7.05402853]
[1750675019779,2.4728,2252.5,2251.8,0.8223]
[1750675020411,2.4728,2252.5,2251.8,10.8223]
[1750675020723,0.6158,2252.3,2251.8,10.0]
[1750675021924,0.6158,2252.3,2251.9,1.334896]
[1750675022985,0.86863044,2252.3,2251.9,1.334896]
[1750675029338,0.6158,2252.1,2251.4,22.30590732]
[1750675029835,0.6158,2252.1,2251.5,0.6158]
[1750675030042,0.6158,2252.1,2251.6,0.04440648]
[1750675030408,0.6158,2252.1,2251.5,0.6158]
[1750675034035,0.6158,2252.1,2251.6,10.04440642]
[1750675034244,0.6158,2252.1,2251.6,17.05402853]
[1750675035255,0.6158,2252.1,2251.7,0.0444064]
[1750675035425,2.4728,2252.1,2251.7,0.0444064]
[1750675035940,2.4728,2252.1,2251.7,1.334991]
[1750675039858,2.4728,2252.1,2251.7,1.37939734]
[1750675041575,0.86308,2252.0,2251.7,1.37939734]
[1750675041761,0.91858787,2252.0,2251.4,7.05402853]
[1750675042064,0.91858787,2252.0,2251.6,1.335074]
[1750675047959,0.91858787,2252.0,2251.2,7.82842853]
[1750675048279,0.91858787,2252.0,2251.3,10.0]
[1750675048867,0.91858787,2252.0,2251.4,1.335111]
[1750675049873,0.91858787,2252.0,2251.3,10.0]
[1750675050080,1.857,2252.1,2251.8,7.05402853]
[1750675050380,0.6158,2252.4,2252.0,7.05402853]
[1750675050777,0.6158,2252.4,2251.9,0.83610421]
[1750675050778,0.6158,2252.4,2251.9,2.17089421]
[1750675050978,0.6158,2252.4,2251.9,2.12649]
[1750675051202,0.6158,2252.4,2251.9,2.17088952]
[1750675051480,0.6158,2252.4,2251.9,2.12649]
[1750675052261,0.6158,2252.4,2251.9,1.33479]
[1750675054950,0.05549941,2252.3,2251.9,1.33479]
[1750675056487,0.6158,2252.2,2251.9,1.33479]
[1750675056688,0.05550712,2252.1,2251.5,10.77]
[1750675057075,0.6158,2252.0,2251.5,10.0]
[1750675057378,2.4728,2252.0,2251.6,0.04440581]
[1750675057580,2.4728,2252.0,2251.8,1.33498]
[1750675057892,2.4728,2252.0,2251.6,0.04440581]
[1750675058389,2.4728,2252.0,2251.7,1.335046]
[1750675058599,2.72008,2252.0,2251.7,1.335046]
[1750675058895,2.72008,2252.0,2251.5,1.335111]
[1750675058896,0.05550995,2251.9,2251.5,1.335111]
[1750675059061,2.72008,2252.0,2251.6,7.09843865]
[1750675060205,2.4728,2252.0,2251.6,7.09843865]
[1750675061671,2.4728,2252.0,2251.5,1.335111]
[1750675062591,2.4728,2252.0,2251.5,1.37952087]
[1750675064210,0.67131231,2251.9,2251.5,1.335111]
[1750675064390,0.6158,2251.7,2251.0,7.05402853]
[1750675064705,0.6158,2251.5,2251.2,1.335343]
[1750675064876,1.857,2251.4,2251.2,1.335343]
[1750675066871,0.6158,2251.5,2251.2,1.335343]
[1750675066872,0.6158,2251.5,2251.2,8.38937153]
[1750675067110,1.857,2251.5,2251.2,8.43378716]
[1750675068006,1.857,2251.5,2251.2,9.19898716]
[1750675068187,1.857,2251.5,2251.2,15.88421609]
[1750675068594,1.857,2251.6,2251.2,15.88421609]
[1750675068802,1.857,2251.8,2251.4,17.05402853]
[1750675069003,1.857,2251.8,2251.6,7.82932853]
[1750675069607,1.857,2252.2,2251.7,10.0]
[1750675069903,1.857,2252.2,2251.9,7.05402853]
[1750675070427,1.857,2252.2,2251.7,7.05402853]
[1750675070641,1.857,2252.2,2251.9,1.334873]
[1750675072932,0.05550264,2252.1,2251.6,10.0]
[1750675073091,0.05550264,2252.1,2251.7,1.33498]
[1750675073493,0.6158,2252.0,2251.7,1.33498]
[1750675077496,1.857,2252.0,2251.7,8.38900853]
[1750675078935,1.857,2252.0,2251.7,1.33498]
[1750675080519,1.857,2252.0,2251.7,12.83008906]
[1750675080826,1.857,2252.0,2251.7,8.38900853]
[1750675081021,1.857,2252.0,2251.7,12.83006558]
[1750675081201,1.857,2252.0,2251.7,8.38900853]
[1750675081610,1.857,2252.0,2251.7,12.83009483]
[1750675081816,1.857,2252.0,2251.8,0.04440437]
[1750675083941,1.857,2252.1,2251.8,0.04440437]
[1750675084131,1.857,2252.1,2251.8,4.48527592]
[1750675084332,1.857,2252.1,2251.8,0.04440437]
[1750675084848,1.857,2252.1,2251.9,7.05402853]
[1750675086915,1.857,2252.1,2252.0,0.8766026]
[1750675087955,1.857,2252.1,2252.0,2.166996]
[1750675088352,1.857,2252.1,2252.0,2.21139654]
[1750675089621,1.857,2252.1,2252.0,2.166996]
[1750675089956,1.857,2252.1,2252.0,12.166996]
[1750675091659,1.857,2252.1,2252.0,1.334796]
[1750675093171,1.857,2252.7,2252.1,10.55]
[1750675093322,1.857,2252.7,2252.6,10.0]
[1750675094461,1.857,2252.7,2252.6,1.334487]
[1750675095824,0.6158,2252.9,2252.6,1.334487]
[1750675096023,1.857,2252.8,2252.6,1.334487]
[1750675097167,1.857,2252.8,2252.6,1.78710921]
[1750675099065,1.25593443,2252.8,2252.6,1.78710921]
[1750675105835,1.856,2252.7,2252.6,1.78710921]
[1750675108298,1.856,2252.7,2251.9,11.65164694]
[1750675108299,1.91148788,2252.7,2252.1,15.27122086]
[1750675108501,1.91148788,2252.7,2252.5,1.334695]
[1750675110621,1.91148788,2252.7,2251.8,7.05402853]
[1750675110622,0.6158,2252.6,2251.8,7.05402853]
[1750675110803,0.67129949,2252.5,2251.8,0.7947]
[1750675110964,0.67129949,2252.5,2252.1,1.334932]
[1750675110965,7.211,2252.4,2252.1,1.334932]
[1750675111311,0.05550497,2252.3,2252.1,1.334932]
[1750675111466,1.856,2252.2,2252.1,1.334932]
[1750675111802,2.4718,2252.2,2252.1,1.334932]
[1750675113094,2.4718,2252.2,2251.4,12.26512911]
[1750675113279,0.05550884,2252.1,2251.9,1.335021]
[1750675113468,0.30823972,2252.1,2251.9,1.335021]
[1750675114509,0.25273088,2252.1,2251.9,1.335021]
[1750675114668,0.30823967,2252.1,2251.9,1.335021]
[1750675125297,9.068,2252.0,2251.9,1.335021]
[1750675129521,9.068,2252.0,2251.5,0.8258]
[1750675129698,0.05551386,2251.9,2251.5,0.8258]
[1750675130029,0.05551386,2251.9,2251.7,1.335152]
[1750675132527,9.067,2251.8,2251.7,1.335152]
[1750675133850,0.6158,2252.2,2251.7,8.38918053]
[1750675134031,9.067,2251.8,2251.7,8.38918053]
[1750675136633,0.6158,2252.2,2251.7,8.38918053]
[1750675136792,9.12250909,2252.1,2251.7,8.38918053]
[1750675137002,9.067,2252.0,2251.7,8.38918053]
[1750675137394,9.067,2252.0,2251.7,1.335152]
[1750675138006,0.6158,2252.2,2251.7,1.335152]
[1750675138207,9.12250908,2252.1,2251.7,1.335152]
[1750675138407,9.067,2252.1,2251.7,1.335152]
[1750675138623,0.05550907,2252.0,2251.7,1.335152]
[1750675138905,0.05550907,2252.1,2251.7,1.335152]
[1750675139105,9.067,2252.0,2251.7,1.335152]
[1750675139623,9.067,2251.9,2251.7,1.335152]
[1750675140336,1.855,2251.8,2251.7,1.335152]
[1750675140715,1.855,2251.8,2251.7,8.38918053]
[1750675140914,1.855,2251.8,2251.7,2.165252]
[1750675143242,0.6158,2252.2,2251.7,2.165252]
[1750675143441,0.6158,2252.2,2251.7,9.21928053]
[1750675143647,9.066,2252.1,2251.8,0.04440387]
[1750675144733,11.2868,2252.4,2251.8,0.04440387]
[1750675144734,1.855,2252.2,2252.0,4.44042202]
[1750675144918,1.855,2252.2,2252.1,7.85872553]
[1750675145132,1.855,2252.2,2252.1,0.804697]
[1750675145339,1.855,2252.2,2252.1,0.7603]
[1750675145856,1.855,2252.2,2251.9,10.7874]
[1750675148131,1.855,2252.2,2252.0,1.334849]
[1750675149459,9.065,2252.2,2252.0,1.334849]
[1750675151560,10.671,2252.4,2252.0,1.334849]
[1750675151721,10.671,2252.4,2252.0,2.156849]
[1750675151722,9.065,2252.3,2252.0,2.156849]
[1750675151922,10.671,2252.4,2252.0,2.156849]
[1750675152145,9.065,2252.3,2252.0,2.20125009]
[1750675152359,9.065,2252.3,2252.0,2.156849]
[1750675154149,10.671,2252.4,2252.0,2.156849]
[1750675154351,9.065,2252.3,2252.0,0.822]
[1750675154659,9.065,2252.3,2252.1,1.334802]
[1750675159862,9.064,2252.2,2252.1,8.38883053]
[1750675161177,10.671,2252.4,2252.2,10.7844]
[1750675161178,12.526,2252.4,2252.2,10.7844]
[1750675161476,12.526,2252.4,2252.3,7.05402853]
[1750675164172,12.526,2252.4,2252.3,8.38855153]
[1750675168043,12.526,2252.4,2252.3,12.8284574]
[1750675168950,12.526,2252.4,2252.3,22.8284574]
[1750675170282,10.671,2252.4,2252.3,22.8284574]
[1750675170578,9.06,2252.9,2252.4,14.43970875]
[1750675170740,9.06,2252.9,2252.5,7.09841898]
[1750675171136,1.853,2252.9,2252.5,7.09841898]
[1750675171338,0.6158,2253.1,2252.6,0.8102]
[1750675171560,9.06,2253.0,2252.6,0.8102]
[1750675171768,9.06,2253.0,2252.6,2.144603]
[1750675173910,0.6158,2252.8,2252.6,1.334403]
[1750675174047,7.207,2252.7,2252.6,1.334403]
[1750675176315,7.26249012,2252.7,2252.6,1.334403]
[1750675176610,7.26249012,2252.7,2252.1,10.8327]
[1750675176766,7.26249012,2252.7,2252.1,12.167365]
[1750675178006,7.26249012,2252.7,2252.1,16.6076409]
[1750675178208,7.206,2252.7,2252.3,7.05402853]
[1750675178764,7.206,2252.7,2252.4,11.334576]
[1750675181503,7.206,2252.7,2252.4,10.0]
[1750675181796,7.206,2252.7,2252.5,1.334576]
[1750675183404,1.853,2252.6,2252.5,13.59307302]
[1750675183705,1.853,2252.6,2252.5,9.15360453]
[1750675185101,1.853,2252.6,2252.5,2.099576]
[1750675185306,1.853,2252.6,2252.5,1.334576]
[1750675190126,1.853,2252.6,2252.3,10.0]
[1750675190529,1.853,2252.6,2252.4,1.334654]
[1750675194514,1.853,2252.6,2252.3,10.0]
[1750675195713,1.853,2252.6,2252.3,11.334718]
[1750675195938,1.853,2252.6,2252.3,10.0]
[1750675198852,1.853,2252.6,2252.3,14.43988383]
[1750675199051,1.853,2252.6,2252.3,21.49391236]
[1750675201250,1.853,2252.6,2252.3,17.05402853]
[1750675201479,1.853,2252.6,2252.2,11.334718]
[1750675201758,0.6158,2252.4,2252.0,10.0]
[1750675202461,0.6158,2252.4,2252.0,1.334801]
[1750675203763,0.05550632,2252.3,2252.0,1.334801]
[1750675204270,0.05550632,2252.3,2251.8,17.05402853]
[1750675204554,0.05550632,2252.3,2251.8,18.38899653]
[1750675205350,0.6158,2252.4,2251.8,18.38899653]
[1750675206164,0.86268,2252.4,2251.8,18.38899653]
[1750675206378,0.05550521,2252.3,2251.8,18.38899653]
[1750675211435,0.6158,2252.6,2252.0,7.83442853]
[1750675211656,10.669,2252.8,2252.0,7.83442853]
[1750675211657,1.852,2252.5,2252.4,7.05402853]
[1750675213041,1.852,2252.5,2252.2,8.38868853]
[1750675213741,1.852,2252.5,2252.3,0.803]
[1750675214129,1.852,2252.4,2252.3,0.803]
[1750675215834,1.852,2252.4,2252.3,15.28730082]
[1750675216050,1.852,2252.4,2252.3,16.60607624]
[1750675218281,1.852,2252.4,2252.3,17.15607624]
[1750675218577,1.852,2252.4,2252.3,17.13517624]
[1750675219846,1.852,2252.4,2252.3,17.35993303]
[1750675220278,10.669,2252.8,2252.5,4.43942705]
[1750675220485,12.521,2252.8,2252.6,7.05402853]
[1750675222086,12.521,2252.8,2252.6,8.38843753]
[1750675226187,12.521,2252.8,2252.6,1.334409]
[1750675233699,19.722,2252.8,2252.6,1.334409]
[1750675233863,9.053,2252.8,2252.6,1.334409]
[1750675236812,1.852,2252.8,2252.6,1.334409]
[1750675238195,1.90748608,2252.8,2252.6,1.334409]
[1750675238416,1.852,2252.8,2252.6,1.334409]
[1750675238681,0.6712876,2252.7,2252.6,1.334409]
[1750675238880,0.6712876,2252.7,2251.9,7.05402853]
[1750675239080,0.6712876,2252.7,2252.1,1.334801]
[1750675239331,0.6158,2252.7,2252.1,1.334801]
[1750675239490,0.24678,2252.6,2252.1,1.334801]
[1750675239691,7.25549993,2252.5,2252.1,1.334801]
[1750675239889,7.2,2252.5,2252.1,8.38882953]
[1750675240397,7.2,2252.5,2252.1,9.26352827]
[1750675240598,7.2,2252.5,2252.1,9.21912953]
[1750675241419,7.2,2252.5,2252.1,13.65942305]
[1750675242126,7.2,2252.5,2252.1,9.21912953]
[1750675243841,1.85,2252.5,2252.3,7.05402853]
[1750675247142,1.85,2252.5,2252.4,1.334665]
[1750675253854,2.4658,2252.5,2252.4,1.334665]
[1750675254254,2.52129442,2252.5,2252.4,1.334665]